fUST/lending_fUST_20250817
["ID","MTS","AMOUNT","RATE_DAILY","PERIOD"]
[379690805,1755371453190,-1009.83,0.00020742,2]
[379690806,1755371453199,-480.0,0.00020742,2]
[379690807,1755371453208,-480.0,0.00020742,2]
[379690808,1755371453218,-480.0,0.00020742,2]
[379690809,1755371453227,-480.0,0.00020742,2]
[379690810,1755371453236,-748.81,0.00020742,2]
[379690811,1755371453245,-480.0,0.00020742,2]
[379690812,1755371453254,-548.03708205,0.00020742,2]
[379690813,1755371453264,-166.319385,0.00020742,2]
[379690814,1755371453273,-166.319385,0.00020742,2]
[379690815,1755371453283,-480.0,0.00020742,2]
[379690816,1755371453292,-480.0,0.00020742,2]
[379690817,1755371453302,-151.0,0.00020742,2]
[379690818,1755371453311,-480.0,0.00020742,2]
[379690819,1755371453335,-151.0,0.00020742,2]
[379690820,1755371453386,-500.0,0.00020742,2]
[379690821,1755371453404,-151.0,0.00020742,2]
[379690822,1755371453414,-500.0,0.00020742,2]
[379690823,1755371453423,-151.0,0.00020742,2]
[379690824,1755371453432,-166.319385,0.00020742,2]
[379690825,1755371453441,-151.24456845,0.00020742,2]
[379690826,1755371453451,-166.319385,0.00020742,2]
[379690827,1755371453460,-151.0,0.00020742,2]
[379690828,1755371453469,-480.0,0.00020742,2]
[379690829,1755371453478,-480.0,0.00020742,2]
[379690830,1755371453487,-290.055291,0.00020742,2]
[379690831,1755371453496,-290.055291,0.00020742,2]
[379690832,1755371453506,-480.0,0.00020742,2]
[379690833,1755371453515,-480.0,0.00020742,2]
[379690834,1755371453524,-480.0,0.00020742,2]
[379690835,1755371453651,-170.670318,0.00020742,2]
[379690836,1755371453662,-170.670318,0.00020742,2]
[379690837,1755371453679,-170.670318,0.00020742,2]
[379690838,1755371453689,-170.670318,0.00020742,2]
[379690839,1755371453698,-460.0,0.00020742,2]
[379690840,1755371453709,-822.77,0.00020742,2]
[379690841,1755371453718,-151.0,0.00020742,2]
[379690842,1755371453727,-151.0,0.00020742,2]
[379690843,1755371453737,-480.0,0.00020742,2]
[379690844,1755371453748,-480.0,0.00020742,2]
[379690845,1755371453757,-1093.71,0.00020742,2]
[379690846,1755371453767,-480.0,0.00020742,2]
[379690847,1755371453776,-480.0,0.00020742,2]
[379690848,1755371453785,-460.0,0.00020742,2]
[379690849,1755371453795,-480.0,0.00020742,2]
[379690850,1755371453804,-480.0,0.00020742,2]
[379690851,1755371453813,-480.0,0.00020742,2]
[379690852,1755371453822,-480.0,0.00020742,2]
[379690853,1755371453832,-500.0,0.00020742,2]
[379690854,1755371453841,-488.28,0.00020742,2]
[379690855,1755371453850,-500.0,0.00020742,2]
[379690856,1755371453860,-500.0,0.00020742,2]
[379690857,1755371453870,-500.0,0.00020742,2]
[379690858,1755371453879,-500.0,0.00020742,2]
[379690859,1755371453889,-500.0,0.00020742,2]
[379690860,1755371453902,-282.75038961,0.00020742,2]
[379690861,1755371453912,-480.0,0.00020742,2]
[379690862,1755371453922,-1928.44,0.00020742,2]
[379690863,1755371453931,-480.0,0.00020742,2]
[379690864,1755371453941,-151.0,0.00020742,2]
[379690865,1755371453950,-151.0,0.00020742,2]
[379690866,1755371453959,-151.0,0.00020742,2]
[379690867,1755371453971,-151.0,0.00020742,2]
[379690868,1755371453981,-1726.54,0.00020742,2]
[379690869,1755371453991,-480.0,0.00020742,2]
[379690870,1755371454000,-151.0,0.00020742,2]
[379690871,1755371454011,-1282.11,0.00020742,2]
[379690872,1755371454020,-480.0,0.00020742,2]
[379690873,1755371454029,-151.0,0.00020742,2]
[379690874,1755371454039,-151.0,0.00020742,2]
[379690875,1755371454048,-151.0,0.00020742,2]
[379690876,1755371454057,-500.0,0.00020742,2]
[379690877,1755371454067,-480.0,0.00020742,2]
[379690878,1755371454076,-151.0,0.00020742,2]
[379690879,1755371454085,-151.0,0.00020742,2]
[379690880,1755371454095,-480.0,0.00020742,2]
[379690881,1755371454104,-4643.73,0.00020742,2]
[379690882,1755371454113,-480.0,0.00020742,2]
[379690883,1755371454123,-480.0,0.00020742,2]
[379690884,1755371454132,-460.0,0.00020742,2]
[379690885,1755371454141,-480.0,0.00020742,2]
[379690886,1755371454150,-286.307208,0.00020742,2]
[379690887,1755371454160,-286.307208,0.00020742,2]
[379690888,1755371454169,-1175.0,0.00020742,2]
[379690889,1755371454178,-460.0,0.00020742,2]
[379690890,1755371454188,-286.307208,0.00020742,2]
[379690891,1755371454197,-286.307208,0.00020742,2]
[379690892,1755371454206,-277.08633534,0.00020742,2]
[379690893,1755371454216,-151.0,0.00020742,2]
[379690894,1755371454226,-151.0,0.00020742,2]
[379690895,1755371454235,-500.0,0.00020742,2]
[379690896,1755371454244,-151.0,0.00020742,2]
[379690897,1755371454253,-151.0,0.00020742,2]
[379690898,1755371454263,-480.0,0.00020742,2]
[379690899,1755371454272,-151.0,0.00020742,2]
[379690900,1755371454281,-151.0,0.00020742,2]
[379690901,1755371454291,-587.73,0.00020742,2]
[379690902,1755371454300,-500.0,0.00020742,2]
[379690903,1755371454310,-4711.76,0.00020742,2]
[379690904,1755371454319,-480.0,0.00020742,2]
[379690905,1755371454329,-480.0,0.00020742,2]
[379690906,1755371454338,-480.0,0.00020742,2]
[379690907,1755371454348,-154.54553138,0.00020742,2]
[379690908,1755371454358,-500.0,0.00020742,2]
[379690909,1755371454367,-151.0,0.00020742,2]
[379690910,1755371454376,-480.0,0.00020742,2]
[379690911,1755371454386,-500.0,0.00020773,2]
[379690912,1755371454395,-500.0,0.00020773,2]
[379690913,1755371454404,-500.0,0.00020773,2]
[379690914,1755371454413,-500.0,0.00020773,2]
[379690915,1755371454422,-1357.79996488,0.00020776,2]
[379690916,1755371454431,-151.0,0.000208,3]
[379690917,1755371454441,-151.0,0.000208,3]
[379690918,1755371454451,-170.670318,0.00020841,2]
[379690919,1755371454460,-170.670318,0.00020841,2]
[379690920,1755371454470,-151.0,0.00020841,2]
[379690921,1755371454479,-151.0,0.00020841,2]
[379690922,1755371454489,-151.0,0.00020842,2]
[379690923,1755371454498,-270.386051,0.00020842,2]
[379690924,1755371454507,-270.386051,0.00020842,2]
[379690925,1755371454518,-166.319385,0.00020842,2]
[379690926,1755371454527,-166.319385,0.00020842,2]
[379690927,1755371454537,-290.055291,0.00020842,2]
[379690928,1755371454546,-290.055291,0.00020842,2]
[379690929,1755371454555,-151.0,0.00020842,2]
[379690930,1755371454564,-260.794866,0.00020842,2]
[379690931,1755371454573,-260.794866,0.00020842,2]
[379690932,1755371454582,-151.0,0.00020842,2]
[379690933,1755371454592,-212.122627,0.00020842,2]
[379690934,1755371454600,-212.122627,0.00020842,2]
[379690935,1755371454609,-151.0,0.00020842,2]
[379690936,1755371454618,-286.307208,0.00020842,2]
[379690937,1755371454627,-286.307208,0.00020842,2]
[379690938,1755371454638,-151.0,0.00020844,2]
[379690939,1755371454648,-151.0,0.00020844,2]
[379690940,1755371454657,-151.0,0.00020844,2]
[379690941,1755371454668,-151.0,0.00020844,2]
[379690942,1755371454677,-215.224806,0.00020844,2]
[379690943,1755371454687,-215.224806,0.00020844,2]
[379690944,1755371454696,-199.074138,0.00020844,2]
[379690945,1755371454706,-199.074138,0.00020844,2]
[379690946,1755371454715,-151.0,0.00020844,2]
[379690947,1755371454725,-844.456935,0.00020844,2]
[379690948,1755371454735,-270.386051,0.00020844,2]
[379690949,1755371454743,-270.386051,0.00020844,2]
[379690950,1755371454753,-152.947268,0.00020846,2]
[379690951,1755371454762,-151.0,0.00020846,2]
[379690952,1755371454772,-215.224806,0.00020846,2]
[379690953,1755371454781,-215.224806,0.00020846,2]
[379690954,1755371454790,-844.456935,0.00020846,2]
[379690955,1755371454798,-844.456935,0.00020846,2]
[379690956,1755371454808,-270.386051,0.00020846,2]
[379690957,1755371454817,-270.386051,0.00020846,2]
[379690958,1755371454826,-151.0,0.00020848,2]
[379690959,1755371454835,-151.0,0.00020848,2]
[379690960,1755371454845,-199.074138,0.00020848,2]
[379690961,1755371454854,-199.074138,0.00020848,2]
[379690962,1755371454863,-151.0,0.00020848,2]
[379690963,1755371454873,-151.0,0.0002085,2]
[379690964,1755371454882,-151.0,0.0002085,2]
[379690965,1755371454892,-151.0,0.0002085,2]
[379690966,1755371454901,-151.0,0.0002085,2]
[379690967,1755371454910,-151.0,0.0002085,2]
[379690968,1755371454920,-242.025535,0.0002085,2]
[379690969,1755371454929,-151.0,0.0002085,2]
[379690970,1755371454939,-215.224806,0.0002085,2]
[379690971,1755371454948,-215.224806,0.0002085,2]
[379690972,1755371454958,-199.074138,0.0002085,2]
[379690973,1755371454971,-151.0,0.0002085,2]
[379690974,1755371454980,-199.074138,0.0002085,2]
[379690975,1755371454989,-151.0,0.0002085,2]
[379690976,1755371455001,-844.456935,0.0002085,2]
[379690977,1755371455010,-844.456935,0.0002085,2]
[379690978,1755371455024,-844.456935,0.0002085,2]
[379690979,1755371455034,-844.456935,0.0002085,2]
[379690980,1755371455043,-270.386051,0.0002085,2]
[379690981,1755371455053,-270.386051,0.0002085,2]
[379690982,1755371455062,-215.224806,0.00020851,2]
[379690983,1755371455073,-215.224806,0.00020851,2]
[379690984,1755371455083,-168.0,0.00020851,2]
[379690985,1755371455092,-151.0,0.00020852,2]
[379690986,1755371455103,-151.0,0.00020852,2]
[379690987,1755371455112,-201.06147971,0.00020854,2]
[379690988,1755371455121,-151.0,0.00020857,2]
[379690989,1755371455130,-151.0,0.00020857,2]
[379690990,1755371455139,-151.0,0.00020857,2]
[379690991,1755371455149,-181.712628,0.00020857,2]
[379690992,1755371455159,-181.712628,0.00020857,2]
[379690993,1755371455168,-151.0,0.00020857,2]
[379690994,1755371455177,-215.224806,0.00020857,2]
[379690995,1755371455186,-215.224806,0.00020857,2]
[379690996,1755371455196,-199.074138,0.00020857,2]
[379690997,1755371455205,-199.074138,0.00020857,2]
[379690998,1755371455214,-153.549071,0.00020857,2]
[379690999,1755371455224,-151.0,0.00020857,2]
[379691000,1755371455234,-290.055291,0.00020857,2]
[379691001,1755371455244,-290.055291,0.00020857,2]
[379691002,1755371455254,-151.0,0.00020857,2]
[379691003,1755371455264,-151.0,0.00020857,2]
[379691004,1755371455273,-151.0,0.00020858,2]
[379691005,1755371455283,-151.0,0.00020859,2]
[379691006,1755371455292,-151.0,0.00020859,2]
[379691007,1755371455301,-151.0,0.00020859,2]
[379691008,1755371455310,-151.0,0.00020859,2]
[379691009,1755371455319,-155.528198,0.00020859,2]
[379691010,1755371455329,-155.528198,0.00020859,2]
[379691011,1755371455338,-675.48061,0.00020859,2]
[379691012,1755371455348,-675.48061,0.00020859,2]
[379691013,1755371455357,-151.0,0.00020859,2]
[379691014,1755371455366,-844.456935,0.00020859,2]
[379691015,1755371455376,-844.456935,0.00020859,2]
[379691016,1755371455386,-270.386051,0.00020859,2]
[379691017,1755371455395,-270.386051,0.00020859,2]
[379691018,1755371455404,-170.670318,0.00020859,2]
[379691019,1755371455414,-170.670318,0.00020859,2]
[379691020,1755371455424,-260.794866,0.00020859,2]
[379691021,1755371455433,-260.794866,0.00020859,2]
[379691022,1755371455443,-151.0,0.00020859,2]
[379691023,1755371455452,-151.0,0.00020859,2]
[379691024,1755371455462,-212.122627,0.00020859,2]
[379691025,1755371455471,-212.122627,0.00020859,2]
[379691026,1755371455480,-151.0,0.00020873,2]
[379691027,1755371455490,-151.0,0.00020873,2]
[379691028,1755371455499,-151.0,0.00020873,2]
[379691029,1755371455509,-151.0,0.00020873,2]
[379691030,1755371455519,-153.369228,0.00020873,2]
[379691031,1755371455528,-800.0,0.00020895,2]
[379691032,1755371455537,-800.0,0.00020903,2]
[379691033,1755371455546,-480.0,0.00020909,2]
[379691034,1755371455555,-883.5,0.00020909,2]
[379691035,1755371455565,-1292.08,0.00020909,2]
[379691036,1755371455574,-4682.1,0.00020909,2]
[379691037,1755371455583,-765.55,0.00020909,2]
[379691038,1755371455593,-480.0,0.00020909,2]
[379691039,1755371455602,-1148.37,0.00020912,2]
[379691040,1755371455612,-1004.4,0.00020912,2]
[379691041,1755371455622,-1127.98,0.00020912,2]
[379691042,1755371455631,-480.0,0.00020912,2]
[379691043,1755371455640,-3224.76,0.00020912,2]
[379691044,1755371455650,-4294.55,0.00020912,2]
[379691045,1755371455659,-480.0,0.00020912,2]
[379691046,1755371455675,-512.09,0.00020912,2]
[379691047,1755371455685,-8376.2,0.00020912,2]
[379691048,1755371455695,-3131.77,0.00020912,2]
[379691049,1755371455705,-480.0,0.00020912,2]
[379691050,1755371455715,-973.28,0.00020912,2]
[379691051,1755371455724,-480.0,0.00020912,2]
[379691052,1755371455733,-1313.8,0.00020912,2]
[379691053,1755371455742,-549.81,0.00020912,2]
[379691054,1755371455751,-521.01,0.00020912,2]
[379691055,1755371455760,-1781.84,0.00020912,2]
[379691056,1755371455769,-480.0,0.00020912,2]
[379691057,1755371455779,-1288.99,0.00020912,2]
[379691058,1755371455788,-480.0,0.00020913,2]
[379691059,1755371455798,-480.0,0.00020913,2]
[379691060,1755371455807,-855.98,0.00020913,2]
[379691061,1755371455816,-480.0,0.00020913,2]
[379691062,1755371455825,-480.0,0.00020913,2]
[379691063,1755371455834,-480.0,0.00020913,2]
[379691064,1755371455843,-275.35922067,0.00020913,2]
[379691065,1755371455852,-345.97769302,0.00020913,2]
[379691066,1755371455861,-480.0,0.00020913,2]
[379691067,1755371455871,-477.5799475,0.00020913,2]
[379691068,1755371455880,-480.0,0.00020913,2]
[379691069,1755371455889,-480.0,0.00020913,2]
[379691070,1755371455898,-496.04,0.00020913,2]
[379691071,1755371455908,-1913.07,0.00020913,2]
[379691072,1755371455918,-480.0,0.00020913,2]
[379691073,1755371455927,-480.0,0.00020913,2]
[379691074,1755371455936,-571.53,0.00020913,2]
[379691075,1755371455946,-480.0,0.00020913,2]
[379691076,1755371455956,-400.0,0.00020913,2]
[379691077,1755371455965,-1090.89,0.00020913,2]
[379691078,1755371455974,-527.3,0.00020913,2]
[379691079,1755371455983,-480.0,0.00020913,2]
[379691081,1755371456105,-2561.05,0.00020913,2]
[379691082,1755371456115,-752.46,0.00020913,2]
[379691083,1755371456125,-480.0,0.00020913,2]
[379691084,1755371456135,-380.0,0.00020913,2]
[379691085,1755371456144,-614.93201571,0.00020913,2]
[379691086,1755371456154,-420.0,0.00020913,2]
[379691087,1755371456164,-480.0,0.00020913,2]
[379691088,1755371456173,-480.0,0.00020913,2]
[379691089,1755371456183,-480.0,0.00020913,2]
[379691090,1755371456192,-595.59,0.00020913,2]
[379691091,1755371456202,-931.61,0.00020913,2]
[379691092,1755371456212,-480.0,0.00020913,2]
[379691093,1755371456221,-480.0,0.00020913,2]
[379691094,1755371456231,-5606.55,0.00020913,2]
[379691095,1755371456240,-440.0,0.00020913,2]
[379691096,1755371456249,-480.0,0.00020913,2]
[379691097,1755371456259,-963.72,0.00020913,2]
[379691098,1755371456268,-1597.56,0.00020913,2]
[379691099,1755371456277,-1169.77,0.00020913,2]
[379691100,1755371456287,-1182.18,0.00020913,2]
[379691101,1755371456296,-465.40713613,0.00020913,2]
[379691102,1755371456305,-1652.81,0.00020913,2]
[379691103,1755371456315,-480.0,0.00020913,2]
[379691104,1755371456325,-579.41,0.00020913,2]
[379691105,1755371456335,-744.32,0.00020913,2]
[379691106,1755371456344,-1401.19,0.00020913,2]
[379691107,1755371456353,-480.0,0.00020913,2]
[379691108,1755371456363,-1534.17,0.00020913,2]
[379691109,1755371456373,-480.0,0.00020913,2]
[379691110,1755371456383,-1019.55,0.00020913,2]
[379691111,1755371456394,-1467.55,0.00020913,2]
[379691112,1755371456403,-612.78,0.00020913,2]
[379691113,1755371456413,-651.02,0.00020913,2]
[379691114,1755371456423,-480.0,0.00020913,2]
[379691115,1755371456433,-480.0,0.00020913,2]
[379691116,1755371456442,-480.0,0.00020913,2]
[379691117,1755371456451,-480.0,0.00020913,2]
[379691118,1755371456461,-480.0,0.00020913,2]
[379691119,1755371456471,-440.0,0.00020913,2]
[379691120,1755371456480,-480.0,0.00020913,2]
[379691121,1755371456490,-480.0,0.00020913,2]
[379691122,1755371456500,-480.0,0.00020913,2]
[379691123,1755371456510,-199.5086985,0.00020913,2]
[379691124,1755371456519,-520.92,0.00020913,2]
[379691125,1755371456529,-12711.05,0.00020913,2]
[379691126,1755371456538,-460.0,0.00020913,2]
[379691127,1755371456548,-1753.37,0.00020913,2]
[379691128,1755371456557,-480.0,0.00020913,2]
[379691129,1755371456566,-606.31,0.00020913,2]
[379691130,1755371456576,-480.0,0.00020913,2]
[379691131,1755371456585,-1139.78,0.00020913,2]
[379691132,1755371456594,-1039.11,0.00020913,2]
[379691133,1755371456604,-1993.7,0.00020913,2]
[379691134,1755371456614,-420.0,0.00020913,2]
[379691135,1755371456623,-480.0,0.00020913,2]
[379691136,1755371456633,-507.01,0.00020913,2]
[379691137,1755371456642,-480.0,0.00020913,2]
[379691138,1755371456652,-480.0,0.00020913,2]
[379691139,1755371456661,-480.0,0.00020913,2]
[379691140,1755371456673,-480.0,0.00020913,2]
[379691141,1755371456684,-460.0,0.00020913,2]
[379691142,1755371456694,-480.0,0.00020913,2]
[379691143,1755371456704,-323.730079,0.00020913,2]
[379691144,1755371456713,-1302.2,0.00020913,2]
[379691145,1755371456723,-480.0,0.00020913,2]
[379691146,1755371456732,-480.0,0.00020913,2]
[379691147,1755371456742,-433.20185352,0.00020913,2]
[379691148,1755371456751,-629.89330661,0.00020913,2]
[379691149,1755371456761,-480.0,0.00020913,2]
[379691150,1755371456770,-1335.04,0.00020913,2]
[379691151,1755371456779,-480.0,0.00020913,2]
[379691152,1755371456788,-607.96,0.00020913,2]
[379691153,1755371456798,-601.35,0.00020913,2]
[379691154,1755371456807,-480.0,0.00020913,2]
[379691155,1755371456816,-480.0,0.00020913,2]
[379691156,1755371456825,-480.0,0.00020913,2]
[379691157,1755371456834,-460.0,0.00020913,2]
[379691158,1755371456843,-480.0,0.00020913,2]
[379691159,1755371456852,-480.0,0.00020913,2]
[379691160,1755371456861,-480.0,0.00020913,2]
[379691161,1755371456871,-5320.02,0.00020913,2]
[379691162,1755371456882,-1084.86883452,0.00020914,2]
[379691163,1755371456896,-810.26,0.00020914,2]
[379691164,1755371456906,-837.11,0.00020914,2]
[379691165,1755371456915,-480.0,0.00020914,2]
[379691166,1755371456926,-166.319385,0.00020914,2]
[379691167,1755371456942,-1904.14,0.00020914,2]
[379691168,1755371456960,-166.319385,0.00020914,2]
[379691169,1755371456969,-480.0,0.00020914,2]
[379691170,1755371456978,-480.0,0.00020914,2]
[379691171,1755371456987,-480.0,0.00020914,2]
[379691172,1755371456996,-758.52,0.00020914,2]
[379691173,1755371457006,-480.0,0.00020914,2]
[379691174,1755371457015,-599.19,0.00020914,2]
[379691175,1755371457024,-480.0,0.00020914,2]
[379691176,1755371457034,-480.0,0.00020914,2]
[379691177,1755371457044,-480.0,0.00020914,2]
[379691178,1755371457053,-257.833712,0.00020914,2]
[379691179,1755371457063,-480.0,0.00020914,2]
[379691180,1755371457072,-819.76,0.00020914,2]
[379691181,1755371457082,-480.0,0.00020914,2]
[379691182,1755371457091,-513.23,0.00020914,2]
[379691183,1755371457101,-1324.23,0.00020914,2]
[379691184,1755371457110,-480.0,0.00020914,2]
[379691185,1755371457121,-480.0,0.00020914,2]
[379691186,1755371457130,-480.0,0.00020914,2]
[379691187,1755371457140,-480.0,0.00020914,2]
[379691188,1755371457151,-480.0,0.00020914,2]
[379691189,1755371457160,-674.37,0.00020914,2]
[379691190,1755371457169,-480.0,0.00020914,2]
[379691191,1755371457178,-480.0,0.00020914,2]
[379691192,1755371457187,-812.47,0.00020914,2]
[379691193,1755371457196,-949.2,0.00020914,2]
[379691194,1755371457206,-1265.76,0.00020914,2]
[379691195,1755371457216,-167.67683217,0.00020914,2]
[379691196,1755371457225,-894.19,0.00020914,2]
[379691197,1755371457234,-460.0,0.00020914,2]
[379691198,1755371457244,-480.0,0.00020914,2]
[379691199,1755371457253,-480.0,0.00020914,2]
[379691200,1755371457262,-2131.61,0.00020914,2]
[379691201,1755371457272,-3501.07,0.00020914,2]
[379691202,1755371457281,-480.0,0.00020914,2]
[379691203,1755371457290,-1392.12,0.00020914,2]
[379691204,1755371457301,-151.0,0.00020914,2]
[379691205,1755371457311,-480.0,0.00020914,2]
[379691206,1755371457321,-480.0,0.00020914,2]
[379691207,1755371457332,-1125.68,0.00020914,2]
[379691208,1755371457343,-480.0,0.00020914,2]
[379691209,1755371457352,-480.0,0.00020914,2]
[379691210,1755371457362,-1680.23,0.00020914,2]
[379691211,1755371457370,-480.0,0.00020914,2]
[379691212,1755371457380,-286.307208,0.00020914,2]
[379691213,1755371457392,-899.5,0.00020914,2]
[379691214,1755371457403,-286.307208,0.00020914,2]
[379691215,1755371457412,-480.0,0.00020914,2]
[379691216,1755371457422,-1172.27,0.00020914,2]
[379691217,1755371457431,-572.8,0.00020914,2]
[379691218,1755371457441,-480.0,0.00020914,2]
[379691219,1755371457451,-1442.02,0.00020914,2]
[379691220,1755371457461,-480.0,0.00020914,2]
[379691221,1755371457470,-570.99,0.00020914,2]
[379691222,1755371457480,-640.22,0.00020914,2]
[379691223,1755371457489,-225.76807373,0.00020915,2]
[379691224,1755371457500,-480.0,0.00020915,2]
[379691225,1755371457511,-440.0,0.00020915,2]
[379691226,1755371457520,-1473.13,0.00020915,2]
[379691227,1755371457530,-480.0,0.00020915,2]
[379691228,1755371457540,-428.03659096,0.00020915,2]
[379691229,1755371457549,-480.0,0.00020915,2]
[379691230,1755371457559,-480.0,0.00020915,2]
[379691231,1755371457568,-480.0,0.00020915,2]
[379691232,1755371457577,-480.0,0.00020915,2]
[379691233,1755371457587,-480.0,0.00020915,2]
[379691234,1755371457597,-480.0,0.00020915,2]
[379691235,1755371457606,-480.0,0.00020915,2]
[379691236,1755371457616,-1052.6,0.00020915,2]
[379691237,1755371457626,-480.0,0.00020915,2]
[379691238,1755371457635,-556.76,0.00020915,2]
[379691239,1755371457645,-480.0,0.00020915,2]
[379691240,1755371457655,-480.0,0.00020915,2]
[379691241,1755371457670,-480.0,0.00020915,2]
[379691242,1755371457679,-902.26,0.00020915,2]
[379691243,1755371457688,-480.0,0.00020915,2]
[379691244,1755371457698,-480.0,0.00020915,2]
[379691245,1755371457707,-260.0,0.00020915,2]
[379691246,1755371457717,-480.0,0.00020915,2]
[379691247,1755371457726,-1272.78,0.00020915,2]
[379691248,1755371457735,-480.0,0.00020915,2]
[379691249,1755371457744,-598.01,0.00020915,2]
[379691250,1755371457753,-480.0,0.00020915,2]
[379691251,1755371457763,-639.46,0.00020915,2]
[379691252,1755371457772,-480.0,0.00020915,2]
[379691253,1755371457781,-480.0,0.00020915,2]
[379691254,1755371457790,-480.0,0.00020915,2]
[379691255,1755371457800,-480.0,0.00020915,2]
[379691256,1755371457809,-480.0,0.00020915,2]
[379691257,1755371457818,-480.0,0.00020915,2]
[379691258,1755371457828,-480.0,0.00020915,2]
[379691259,1755371457837,-480.0,0.00020915,2]
[379691260,1755371457847,-480.0,0.00020915,2]
[379691261,1755371457857,-480.0,0.00020915,2]
[379691262,1755371457867,-310.9213991,0.00020915,2]
[379691263,1755371457876,-480.0,0.00020915,2]
[379691264,1755371457886,-480.0,0.00020915,2]
[379691265,1755371457895,-480.0,0.00020915,2]
[379691266,1755371457904,-480.0,0.00020915,2]
[379691267,1755371457913,-531.68,0.00020915,2]
[379691268,1755371457922,-401.19690133,0.00020915,2]
[379691269,1755371457931,-603.35,0.00020915,2]
[379691270,1755371457940,-480.0,0.00020915,2]
[379691271,1755371457950,-1000.0,0.00020915,2]
[379691272,1755371457959,-421.41100767,0.00020915,2]
[379691273,1755371457968,-480.0,0.00020915,2]
[379691274,1755371457977,-480.0,0.00020915,2]
[379691275,1755371457986,-480.0,0.00020915,2]
[379691276,1755371457995,-639.01,0.00020915,2]
[379691277,1755371458005,-480.0,0.00020915,2]
[379691278,1755371458014,-328.41490144,0.00020915,2]
[379691279,1755371458023,-480.0,0.00020915,2]
[379691280,1755371458032,-480.0,0.00020915,2]
[379691281,1755371458041,-480.0,0.00020915,2]
[379691282,1755371458050,-480.0,0.00020915,2]
[379691283,1755371458059,-480.0,0.00020915,2]
[379691284,1755371458068,-480.0,0.00020915,2]
[379691285,1755371458077,-480.0,0.00020915,2]
[379691286,1755371458086,-480.0,0.00020915,2]
[379691287,1755371458095,-480.0,0.00020915,2]
[379691288,1755371458104,-480.0,0.00020915,2]
[379691289,1755371458113,-480.0,0.00020915,2]
[379691290,1755371458122,-480.0,0.00020915,2]
[379691291,1755371458131,-536.2,0.00020915,2]
[379691292,1755371458140,-480.0,0.00020915,2]
[379691293,1755371458150,-345.54503434,0.00020915,2]
[379691294,1755371458159,-480.0,0.00020915,2]
[379691295,1755371458168,-481.23,0.00020915,2]
[379691296,1755371458177,-480.0,0.00020915,2]
[379691297,1755371458186,-480.0,0.00020915,2]
[379691298,1755371458195,-480.0,0.00020915,2]
[379691299,1755371458205,-1211.14,0.00020915,2]
[379691300,1755371458214,-460.0,0.00020915,2]
[379691301,1755371458223,-240.26712686,0.00020915,2]
[379691302,1755371458233,-866.72,0.00020915,2]
[379691303,1755371458243,-155.73310218,0.00020915,2]
[379691304,1755371458252,-480.0,0.00020915,2]
[379691305,1755371458261,-480.0,0.00020915,2]